Cogmind - Beta 17 @@@ ROGUE MODE // 2026.06.30 @ 17:21:34 Player: mmmmcheese Result: Destroyed by SF-6IN(R) with Subdweller Laser Performance ------------- Evolutions (0) 0 Regions Visited (3) 600 Robots Destroyed (14) 70 Value Destroyed (380) 380 Prototype IDs (1) 20 Alien Tech Used (0) 0 Bonus (0) 0 TOTAL SCORE: 1070 Bonus ------- None Cogmind --------- Core Integrity 0/250 Matter 290/300 Energy 100/100 System Corruption 0% Temperature Cool (6) Movement Core (50) Location -10/Subcaves Parts ------- > --- POWER (1) -------- (None) > --- PROPULSION (2) --- (None) > --- UTILITY (2) ------ Sensor Array > --- WEAPON (2) ------- (None) > --- INVENTORY (5) ---- Huge Storage Unit Huge Storage Unit Medium Matter Pod (100) Medium Matter Pod (46) Peak State ------------ > --- POWER ------------ Light Nuclear Core > --- PROPULSION ------- Light Treads Light Treads > --- UTILITY ---------- Improved Heat Sink Large Storage Unit > --- WEAPON ----------- Advanced Beam Cannon Advanced Beam Cannon > --- INVENTORY -------- Light Ion Engine Light Treads Small Storage Unit Huge Storage Unit Huge Storage Unit Medium Matter Pod Medium Matter Pod Sensor Array EM Pulse Gun Advanced Beam Cannon Mining Claw Explosive Trap Explosive Trap Explosive Trap Signal Generator [Rating: 17] Favorites ----------- Power Light Nuclear Core Engine Light Ion Engine Power Core Light Nuclear Core Propulsion Light Treads Treads Light Treads Utility Large Storage Unit Device Improved Heat Sink Storage Large Storage Unit Weapon Advanced Beam Cannon Energy Gun EM Pulse Gun Energy Cannon Advanced Beam Cannon Ballistic Gun Assault Rifle Build | -11 -10 -10 -10 ------- Run | Yrd Mat Min Sub Slots Evolved . | . . . . Power . | . . . . Propulsion . | . . . . Utility . | . . . . Weapon . | . . . . Parts Attached 15 | 5 8 . 2 Power 2 | 1 1 . . Engine 1 | 1 . . . Core 1 | . 1 . . Reactor . | . . . . Propulsion 3 | 2 1 . . Treads 3 | 2 1 . . Leg . | . . . . Wheel . | . . . . Hover . | . . . . Flight . | . . . . Utility 3 | . 3 . . Device 2 | . 2 . . Storage 1 | . 1 . . Processor . | . . . . Hackware . | . . . . Protection . | . . . . Artifact . | . . . . Weapon 7 | 2 3 . 2 Energy Gun 1 | . 1 . . Energy Cannon 3 | . 1 . 2 Ballistic Gun 3 | 2 1 . . Ballistic Cannon . | . . . . Launcher . | . . . . Special Weapon . | . . . . Impact Weapon . | . . . . Slashing Weapon . | . . . . Piercing Weapon . | . . . . Special Melee Weapon . | . . . . Unidentified Prototypes 1 | . 1 . . Parts Lost 6 | . 1 . 5 Power 1 | . . . 1 Propulsion 2 | . . . 2 Utility . | . . . . Weapon 3 | . 1 . 2 Highest Loss Streak 5 | . 1 . 5 To Critical Strikes . | . . . . Average Backups 8 | . 6 11 10 Power . | . . 1 . Propulsion 1 | . . 1 . Utility 4 | . 2 6 5 Weapon 2 | . 2 3 3 Tool/Special . | . . . . Unused Backups 9 | . 2 2 5 Power . | . . . . Propulsion 2 | . . 2 . Utility 4 | . 1 . 3 Weapon 3 | . 1 . 2 Tool/Special . | . . . . Average Slot Usage (%) 92 | . 89 100 92 Engine 3 | . 6 . . Core 10 | . 7 14 12 Treads 27 | . 28 28 25 Device 12 | . 10 14 13 Storage 10 | . 7 14 13 Energy Gun 7 | . 8 14 . Energy Cannon 13 | . 5 14 25 Ballistic Gun 6 | . 13 . . Peak Build Rating 17 | 5 14 15 17 Average Rating 12 | 4 9 14 15 On Entrance 8 | . 5 14 15 Avg Prop Armor Cover (%) . | . . . . Naked Turns 14 | . . . 14 Heaviest Build 34 | 7 32 32 34 Greatest Support 40 | 40 40 40 40 Greatest Overweight (x) 2 | 1 . . 2 Average Overweight (x) . | . . . . Largest Inventory Capacity 15 | 5 15 15 15 Average Capacity 12 | 5 10 15 14 Most Carried 15 | 2 13 15 15 Average Carried 10 | 1 6 14 14 Final Capacity 15 | 5 15 15 5 Final Carried 15 | 2 13 15 4 Class Distribution -------------------- 100% | Mutant Dominant Class ---------------- Mutant | -10/Materials Mutant | -10/Mines Mutant | -10/Subcaves Resources | -11 -10 -10 -10 ----------- Run | Yrd Mat Min Sub Matter Collected 594 | 242 201 . 151 Remotely . | . . . . Salvage Created 488 | . 323 . 165 Parts 32 | . 17 . 15 Haulers Intercepted 1 | . 1 . . Recyclers Shooed . | . . . . Parts Field Recycled . | . . . . Retrieved Matter . | . . . . Parts Self-Destructed 5 | . . . 5 Prevented . | . . . . Parts Restored . | . . . . Kills | -11 -10 -10 -10 ------- Run | Yrd Mat Min Sub Combat Hostiles Destroyed 11 | . 7 . 4 Guns 7 | . 7 . . Cannons 4 | . . . 4 Classes Destroyed 5 | . 4 . 1 Hauler 1 | . 1 . . Watcher 2 | . 2 . . Swarmer 3 | . 3 . . Grunt 5 | . 4 . 1 Subdweller 3 | . . . 3 Best Kill Streak 3 | . 3 . 2 Combat Bots Only 3 | . 3 . 2 Max Kills in Single Turn 1 | . 1 . 1 Gunslinging . | . . . . Exploded . | . . . . Melee . | . . . . Uniques/NPCs Destroyed . | . . . . Combat | -11 -10 -10 -10 -------- Run | Yrd Mat Min Sub Hostile Shots Fired 103 | . 40 . 63 Missed 23 | . 5 . 18 Hits 80 | . 35 . 45 Projectile 80 | . 35 . 45 Critical Strikes 2 | . 1 . 1 Damage Taken 1311 | . 443 . 868 Core 265 | . 76 . 189 Absorbed by Shields . | . . . . Regen/Repaired (Parts) 16 | . 16 . . Core Remaining (%) 100 | 100 . . . Volleys Fired 56 | . 39 . 17 Largest 2 | . 2 . 2 Hottest 136 | . 108 . 136 Shots Fired 101 | . 68 . 33 Gun 64 | . 60 . 4 Cannon 37 | . 8 . 29 Launcher . | . . . . Special . | . . . . Kinetic 42 | . 42 . . Thermal 37 | . 8 . 29 Explosive . | . . . . Electromagnetic 22 | . 18 . 4 Robot Hit Streak 13 | . 11 . 13 Robot Miss Streak 6 | . 6 . 2 Penetration Max . | . . . . Secondary Targets 1 | . 1 . . Max Gunslinging Chain 1 | . 1 . . Shots Hit Robots 61 | . 37 . 24 Core Hits 22 | . 15 . 7 Critical Kills . | . . . . Critical Parts Destroyed . | . . . . Critical Strikes . | . . . . Melee Attacks . | . . . . Impact . | . . . . Slashing . | . . . . Piercing . | . . . . Sneak Attacks . | . . . . Combat Hostiles . | . . . . Follow-up Attacks . | . . . . Damage Inflicted 1037 | . 573 . 464 Guns 486 | . 456 . 30 Cannons 518 | . 84 . 434 Explosions 33 | . 33 . . Melee . | . . . . Ramming . | . . . . Kinetic 326 | . 326 . . Thermal 551 | . 117 . 434 Explosive . | . . . . Electromagnetic 160 | . 130 . 30 Impact . | . . . . Slashing . | . . . . Piercing . | . . . . Highest Corruption . | . . . . Average Corruption . | . . . . Corruption Purged . | . . . . Corruption Blocked . | . . . . Overload Shots . | . . . . Overflow Damage 12 | . 12 . . Projectiles 12 | . 12 . . Explosions . | . . . . Melee . | . . . . Knockbacks . | . . . . Impact . | . . . . Kinetic . | . . . . Secondary . | . . . . Self-Inflicted Damage . | . . . . Shots . | . . . . Rammed . | . . . . Targets Rammed . | . . . . Kicked . | . . . . Crushed . | . . . . Highest Temperature 108 | . 108 . 5 Average Temperature 25 | . 26 . 4 Received Heat Transfer 405 | . 192 . 213 Siege Activations . | . . . . Martial Activations . | . . . . Shielding Activations . | . . . . Robots Disrupted . | . . . . Combat Hostiles . | . . . . Robots Corrupted . | . . . . Combat Hostiles . | . . . . Parts Fried 2 | . 2 . . Impact Corruptions . | . . . . Robots Melted . | . . . . Combat Hostiles . | . . . . Parts Melted . | . . . . Heat Transferred 975 | . 198 . 777 Parts Sabotaged . | . . . . Parts Stolen . | . . . . Parts Stripped . | . . . . Power Chain Reactions 1 | . 1 . . Alert | -11 -10 -10 -10 ------- Run | Yrd Mat Min Sub Maximum Alert Level . | . . . . Low Security (%) 100 | 100 100 100 . Level 1 . | . . . . Level 2 . | . . . . Level 3 . | . . . . Level 4 . | . . . . Level 5 . | . . . . High Security . | . . . . Max Security . | . . . . Peak Influence 86 | . 86 . . Initial . | . . . . Average 9 | . 13 . . Influence Increases 230 | . 200 . 30 Destroy 0b10 Robot/C 160 | . 140 . 20 Destroy 0b10 Robot/NC 15 | . 15 . . Destroy Leader 36 | . 26 . 10 Successful Hack 17 | . 17 . . Destroy Structure 2 | . 2 . . Influence Decreases 230 | . 200 . 30 Time Decay 204 | . 194 . 10 Lost Part 26 | . 6 . 20 Squads Dispatched . | . . . . Investigation . | . . . . Extermination . | . . . . Reinforcement . | . . . . Assault . | . . . . Garrison . | . . . . Intercept . | . . . . Searches Triggered . | . . . . Construction Impeded . | . . . . Haulers Reinforced . | . . . . Active Scanning Responses . | . . . . Cargo Convoy Interrupts . | . . . . Stealth | -11 -10 -10 -10 --------- Run | Yrd Mat Min Sub Distress Signals 2 | . 1 1 . Communications Jammed . | . . . . Distress Signals . | . . . . Times Spotted 25 | . 18 . 7 Peak Tracking Total 4 | . 4 . 4 Tactical Retreats . | . . . . Traps | -11 -10 -10 -10 ------- Run | Yrd Mat Min Sub Traps Triggered 1 | . 1 . . Indirectly . | . . . . Trap Hack Attempts . | . . . . Triggered . | . . . . Disarmed . | . . . . Reprogrammed . | . . . . Reused . | . . . . Traps Extracted . | . . . . Installed . | . . . . Triggered . | . . . . Most Traps Carried 3 | . . 3 3 Machines | -11 -10 -10 -10 ---------- Run | Yrd Mat Min Sub Machines Disabled . | . . . . Max in Single Turn . | . . . . Machines Repaired . | . . . . Machines Dismantled . | . . . . Machines Sabotaged . | . . . . Overloaded Fab Kills . | . . . . Hacking | -11 -10 -10 -10 --------- Run | Yrd Mat Min Sub Machines Accessed 5 | . 5 . . Terminals 4 | . 4 . . Fabricators . | . . . . Repair Stations 1 | . 1 . . Recycling Units . | . . . . Scanalyzers . | . . . . Garrison Access . | . . . . Total Hacks 14 | . 14 . . Successful 9 | . 9 . . Failed 5 | . 5 . . Catastrophic 1 | . 1 . . Database Lockouts . | . . . . Manual 13 | . 13 . . Terminals 12 | . 12 . . Fabricators . | . . . . Repair Stations 2 | . 2 . . Recycling Units . | . . . . Scanalyzers . | . . . . Garrison Access . | . . . . Terminal Hacks 4 | . 4 . . Robot Analysis 4 | . 4 . . Fabricator Hacks . | . . . . Repair Station Hacks 2 | . 2 . . Scan Component 1 | . 1 . . Repair 1 | . 1 . . Recycling Unit Hacks . | . . . . Scanalyzer . | . . . . Garrison Access Hacks . | . . . . Unauthorized Hacks 3 | . 3 . . Terminals 3 | . 3 . . Assimilate 1 | . 1 . . Botnet 1 | . 1 . . Operators 1 | . 1 . . Fabricators . | . . . . Repair Stations . | . . . . Recycling Units . | . . . . Scanalyzers . | . . . . Garrison Access . | . . . . Data Cores Recovered . | . . . . Used . | . . . . Hacking Detections 5 | . 5 . . Full Trace Events . | . . . . Feedback Events . | . . . . Feedback Blocked . | . . . . Robot Schematics Acquired . | . . . . Robots Built . | . . . . Authchips . | . . . . Time . | . . . . Total Robot Build Rating . | . . . . Part Schematics Acquired . | . . . . Parts Built . | . . . . Authchips . | . . . . Time . | . . . . Total Part Build Rating . | . . . . Part Studies Acquired . | . . . . Parts Repaired 1 | . 1 . . Time 26 | . 26 . . Parts Recycled . | . . . . Recycled Matter . | . . . . Retrieved Matter . | . . . . Retrieved Components . | . . . . Parts Scanalyzed . | . . . . Part Schematics Acquired . | . . . . Parts Damaged . | . . . . Bothacking | -11 -10 -10 -10 ------------ Run | Yrd Mat Min Sub Used RIF Installer . | . . . . Robots Hacked . | . . . . Non-combat . | . . . . Combat . | . . . . Robot Hacks Applied . | . . . . Relay Couplers Released . | . . . . Fabnet Peak Effective % . | . . . . Robots Rewired . | . . . . Allies Hacked . | . . . . Hacks Repelled . | . . . . Allies | -11 -10 -10 -10 -------- Run | Yrd Mat Min Sub Total Allies 1 | . 1 . . Largest Group 1 | . 1 1 1 Highest-Rated Group 10 | . 10 10 10 Highest-Rated Ally 10 | . 10 10 10 Total Orders 5 | . 2 . 3 STAY 3 | . 1 . 2 FOLLOW 2 | . 1 . 1 Ally Attacks . | . . . . Total Damage . | . . . . Kills . | . . . . Allies Corrupted . | . . . . Allies Melted . | . . . . Intel | -11 -10 -10 -10 ------- Run | Yrd Mat Min Sub Active Infowar (turns) 407 | . 381 . 26 Sensors 407 | . 381 . 26 Robot Analysis Total 4 | . 4 . . Derelict Logs Recovered 1 | . . . 1 Drone Launches . | . . . . Drone Recoveries . | . . . . Exploration | -11 -10 -10 -10 ------------- Run | Yrd Mat Min Sub Turns Passed 1987 | 53 968 389 577 Spaces Moved 1043 | 31 500 200 312 Core 45 | 5 . . 40 Treads 998 | 26 500 200 272 Legs . | . . . . Wheels . | . . . . Hover . | . . . . Flight . | . . . . Fastest Speed 50 | 50 160 160 50 Average Speed 155 | 145 160 160 146 Slowest Speed 160 | 160 160 160 160 Overloaded Moves . | . . . . Propulsion Burnouts . | . . . . Robots Hopped . | . . . . Potential Cave-ins . | . . . . Cave-ins Triggered . | . . . . Exploration Rate (%) 33 | 3 70 42 18 Regions Visited 3 Branch Regions 2 Pre-discovered Areas 2 | . . . 2 Known Exits Taken . | . . . . Unknown Exits Taken 3 | 1 1 1 . Scrap Searched . | . . . . Spaces Dug . | . . . . Terrain Destroyed 3 | . 1 . 2 Melee . | . . . . Projectile 2 | . . . 2 AOE 1 | . 1 . . Terrain Rammed . | . . . . Walls Destroyed . | . . . . Machines Disabled . | . . . . Actions | -11 -10 -10 -10 --------- Run | Yrd Mat Min Sub Total 1305 | 37 599 271 398 Wait 161 | . 35 64 62 Move 1040 | 30 499 199 312 Hop . | . . . . Pick Up 23 | 2 15 5 1 Fast Attach 6 | 5 1 . . Attach 5 | . 2 . 3 Detach . | . . . . Swap 6 | . 5 . 1 Drop 8 | . 3 3 2 Fire 56 | . 39 . 17 Melee . | . . . . Ram . | . . . . Kick . | . . . . Crush . | . . . . Escape Stasis . | . . . . Rewire . | . . . . Trap . | . . . . Miscellaneous . | . . . . Route ------- -11/Scrapyard -10/Materials (discovered 3 exits: [*Mat x2] / [*Min]) -10/Mines -10/Subcaves History --------- Turn | Location | Event 24 | -11/Scrapyard | Discovered new exit (range 14) 54 | -11/Scrapyard | Entered Materials 55 | -10/Materials | Met a group of wandering Federalists 310 | -10/Materials | Build established: Mutant 549 | -10/Materials | Discovered new exit (range 11) 607 | -10/Materials | Discovered new exit (range 4) 759 | -10/Materials | Repaired Sensor Array 812 | -10/Materials | Discovered new exit (range 8) 1022 | -10/Materials | Entered Mines 1022 | -10/Mines | Accompanied by 1 ally 1023 | -10/Mines | Met a Derelict testing a Signal Generator 1030 | -10/Mines | Found Signal Generator 1111 | -10/Mines | Found a hidden stash of uninstalled traps 1228 | -10/Mines | Assembled infested the area 1233 | -10/Mines | Assisted by a Guerilla fighting off Assembled 1405 | -10/Mines | Discovered new exit (range 5) 1411 | -10/Mines | Entered Subcaves 1411 | -10/Subcaves | Accompanied by 1 ally 1578 | -10/Subcaves | Learned location of Zion (-6) 1578 | -10/Subcaves | Met a Zionite searching for "candidates" 1640 | -10/Subcaves | Shifting Twisted Machinery released Battle Rifle 1641 | -10/Subcaves | Shifting Twisted Machinery released Sub. Power Source 1810 | -10/Subcaves | Learned location of Storage (-9) 1912 | -10/Subcaves | Ambushed by Subdweller buried in earth 1922 | -10/Subcaves | Core integrity fell below 50% 1933 | -10/Subcaves | Core integrity fell below 20% 1948 | -10/Subcaves | Released all parts (3) 1975 | -10/Subcaves | Lost 5 parts (1p2n2w) 1988 | -10/Subcaves | Destroyed by SF-6IN(R) with Subdweller Laser Last Messages --------------- 01911_ Aluminum Leg fries itself beyond repair. [Achievement: Do Not Disturb] 01913_ NO-AOX(R): "NAT20!" 01914_ Aluminum Leg fries itself beyond repair. 01916_ Lgt. Nuclear Core fries itself beyond repair. 01917_ Imp. Heat Sink fries itself beyond repair. 01926_ Lgt. Nuclear Core destroyed. 01928_ Lgt. Treads destroyed. 01931_ Adv. Beam Cannon destroyed. 01939_ ED-CF6(R) destroyed. 01940_ Lgt. Treads destroyed. 01942_ Dropped Lrg. Storage Unit. 01942_ Acquired 30 matter. 01943_ SF-6IN(R) suffers critical hit (Destroy). 01944_ Adv. Beam Cannon destroyed. 01948_ Released Lgt. Treads. 01948_ Released Imp. Heat Sink. 01948_ Released Adv. Beam Cannon. Map ----- +----------------------------------------------------+ | ???????????? #???# ### ???????????????? | | ?????????????? ##?##=# #???????????????? | | ????????????????# ##?##% ##??????????????? | | ?????????????????# #### #??????????????? | | ?????????????????# /&!#& ##??????????????? | | ????????????????## [ !&& #??????????????? | | ????????????????# !=##[[& #??????????????? | | ??????????#?????## ]#### ##??????????????? | | ??????????# ????## #??####???????????????? | | ??????????# ??# #######???????????????? | | ??????????# ## ### #???????????????? | | ???????????# ## ##??????????????? | | ???????????# ## #??????????????? | | ???????????## ##?????????????? | | ????????????##### #?????????????? | | ????????????????# ## #?????????????? | | ???????????????# ?##### #?????????????? | | ????????????? ""?????# #?????????????? | | ??????????? "" " ??#### #?????????????? | | ??????????# "" " ?## ##?????????????? | | ??????????# "" "??#" ##??????????????? | | ????????? "? ????### ##??????????????? | | ?????????? ?? ???????## #??????????????? | | ????????????? ?????????# #??????????????? | | ????????????"???????????# R #??????????????? | | ???????????????????????##@ #??????????????? | | ??????????????? ??????## #??????????????? | | ?????????????? "#????# ##??????????????? | | ??????????????? " ##??# ####???????????????? | | ???????????????"""""###R ##??????????????????? | | ???????????????""" """ #???????????????????? | | ???????????????"""""" ##???????????????????? | | ???????????????"#### " #????????????????????? | | ???????????????????######????????????????????? | | ?????????????????????????????????????????????? | | ?????????????????????????????????????????????? | | ?????????????????????????????????????????????? | | ?????????????????????????????????????????????? | | ?????????????????????????????????????????????? | | ?????????????????????????????????????????????? | | ?????????????????????????????????????????????? | | ?????????????????????????????????????????????? | | ?????????????????????????????????????????????? | | ?????????????????????????????????????????????? | | ?????????????????????????????????????????????? | | ?????????????????????????????????????????????? | | ?????????????????????????????????????????????? | | ?????????????????????????????????????????????? | | | | | +----------------------------------------------------+ Best States ------------- Heat Dissipation 39 Energy Generation 14 Energy Capacity 160 Matter Stores 300 Matter Capacity 300 Sight Range 16 Robot Scan Range 14 Terrain Scan Density 10 Evasion (%) 50 Recoil Reduction 2 Item Schematics ----------------- None Robot Schematics ------------------ None Fabricated ------------ Nothing Repaired ---------- Sensor Array | 20% | -10/Materials Studied --------- None Alien Tech Used ----------------- None Achievements -------------- Do Not Disturb Challenges ------------ None Game ------ Seed NeutronBorgRigger Manual? 0 Play Time 00:17:29 Cumulative 84.9 hours Start 2026.06.30 @ 17:06:00 End 2026.06.30 @ 17:21:34 Sessions 1 Manual Loads 0 Difficulty Rogue Special Mode None Game No. 41 Rogue 41 Adventurer 0 Explorer 0 Win Type - Total 2 Types 2/0/0/0/0/0/0/0/0/0 Lore% 46 Gallery% 46 Achievement% 45 Wizard Run 0 Options --------- Layout 1 ASCII 0 Keyboard 0 Movement Mouse Keybinds 0 Fullscreen 1 Font 24/Smallcaps Map View 50x35 Zoom Use 0% Tactical HUD 1 Map Filters NONE Filters NONE Steam 1 RUN: 5dcddb9a-86da-4106-819f-ccabd47c59bc